Cogmind - Beta 11.2 @@@ ROGUE MODE // 2023.02.17 @ 15:28:46 Player: Skulldox Result: Destroyed by H-66 Slayer with Heavy Assault Rifle Performance ------------- Evolutions (4) 2000 Regions Visited (10) 2000 Robots Destroyed (100) 500 Value Destroyed (2236) 2236 Prototype IDs (10) 200 Alien Tech Used (0) 0 Bonus (369) 369 TOTAL SCORE: 7305 Bonus ------- High Alert Combat Kills 69 Aligned with FarCom 300 Cogmind --------- Core Integrity 0/850 Matter 61/300 Energy 99/100 System Corruption 3% Temperature Critical (536) Movement Core (50) Location -6/Factory Parts ------- > --- POWER (1) -------- (None) > --- PROPULSION (5) --- (None) > --- UTILITY (5) ------ Improved Signal Interpreter Target Analyzer > --- WEAPON (4) ------- (None) > --- INVENTORY (5) ---- ECM Suite YOLO Cannon Rocket Launcher Rocket Launcher Peak State ------------ > --- POWER ------------ Improved Ion Engine > --- PROPULSION ------- Carbon-fiber Leg Carbon-fiber Leg Carbon-fiber Leg Improved Carbon-fiber Leg Improved Titanium Leg > --- UTILITY ---------- Large Storage Unit Improved Sensor Array Improved Signal Interpreter Target Analyzer Hardlight Generator > --- WEAPON ----------- Improved Spread Laser YOLO Cannon Flak Cannon > --- INVENTORY -------- Carbon-fiber Leg Compact Wheel Large Storage Unit Energy Well Structural Scanner ECM Suite EM Pulse Gun Improved Medium Laser Particle Cannon Improved Assault Rifle Rocket Launcher Rocket Launcher [Rating: 62] Favorites ----------- Power Heavy Ion Engine Engine Heavy Ion Engine Propulsion Aluminum Leg Leg Aluminum Leg Wheel Compact Wheel Utility Large Storage Unit Device Improved Sensor Array Storage Large Storage Unit Processor Improved Signal Interpreter Hackware Hacking Suite Protection Reactive Plating Weapon Heavy Assault Rifle Energy Gun Improved Medium Laser Energy Cannon Heavy Particle Cannon Ballistic Gun Heavy Assault Rifle Ballistic Cannon Flak Cannon Launcher Rocket Launcher Build | -11 -10 -10 -9 -9 -9 -8 -8 -8 -8 -6 ------- Run | Scr Mat Min Mat Min Exi Min Mat Sto Rec Fac Slots Evolved 8 | . . . 2 . . . 2 . . 4 Power . | . . . . . . . . . . . Propulsion 3 | . . . 1 . . . 1 . . 1 Utility 3 | . . . . . . . 1 . . 2 Weapon 2 | . . . 1 . . . . . . 1 Parts Attached 125 | 7 8 2 35 5 11 2 19 13 . 23 Power 9 | 1 2 . 5 . . . . . . 1 Engine 9 | 1 2 . 5 . . . . . . 1 Core . | . . . . . . . . . . . Reactor . | . . . . . . . . . . . Propulsion 26 | 2 1 . 9 . 2 . 6 2 . 4 Treads . | . . . . . . . . . . . Leg 25 | 2 1 . 8 . 2 . 6 2 . 4 Wheel 1 | . . . 1 . . . . . . . Hover . | . . . . . . . . . . . Flight . | . . . . . . . . . . . Utility 44 | 2 2 1 8 2 6 1 3 7 . 12 Device 31 | 1 . 1 3 2 6 1 1 6 . 10 Storage 6 | 1 1 . 3 . . . . . . 1 Processor 4 | . 1 . . . . . 2 . . 1 Hackware 1 | . . . 1 . . . . . . . Protection 2 | . . . 1 . . . . 1 . . Artifact . | . . . . . . . . . . . Weapon 46 | 2 3 1 13 3 3 1 10 4 . 6 Energy Gun 14 | 1 1 . 7 . . . 2 . . 3 Energy Cannon 7 | . . . . . 1 . 2 2 . 2 Ballistic Gun 20 | 1 1 1 5 2 2 . 6 1 . 1 Ballistic Cannon 1 | . . . . . . . . 1 . . Launcher 4 | . 1 . 1 1 . 1 . . . . Special Weapon . | . . . . . . . . . . . Impact Weapon . | . . . . . . . . . . . Slashing Weapon . | . . . . . . . . . . . Piercing Weapon . | . . . . . . . . . . . Special Melee Weapon . | . . . . . . . . . . . Unidentified Prototypes 7 | . . . 4 . 2 . . . . 1 Parts Lost 22 | . . . 7 . . . . . . 15 Power 2 | . . . 1 . . . . . . 1 Propulsion 8 | . . . 2 . . . . . . 6 Utility 3 | . . . 1 . . . . . . 2 Weapon 9 | . . . 3 . . . . . . 6 Highest Loss Streak 15 | . . . 4 . . . . . . 15 To Critical Strikes . | . . . . . . . . . . . Average Slot Usage (%) 98 | . 100 100 94 100 99 100 96 99 100 98 Engine 9 | . 14 14 9 11 11 11 9 9 9 5 Leg 30 | . 28 28 29 22 21 22 36 35 36 32 Wheel 2 | . . . 2 11 11 11 . . . . Device 9 | . 14 6 2 9 10 11 9 8 9 13 Storage 10 | . 14 14 12 12 11 11 9 9 9 9 Processor 4 | . . 7 . . . . 6 9 9 8 Energy Gun 7 | . 10 14 18 11 11 11 3 . . 5 Energy Cannon 3 | . . . . . . . 5 9 9 5 Ballistic Gun 13 | . 17 13 13 21 21 11 17 9 9 5 Ballistic Cannon 2 | . . . . . . . . 8 9 5 Naked Turns . | . . . . . . . . . . . Heaviest Build 61 | 12 20 20 57 57 37 38 50 53 44 61 Greatest Support 83 | 20 20 20 30 20 16 16 53 53 53 83 Greatest Overweight (x) 2 | . . . 2 2 2 2 . 1 . 1 Average Overweight (x) . | . . . . 1 1 2 . . . . Largest Inventory Capacity 15 | 8 10 10 15 15 15 15 15 15 15 15 Average Capacity 13 | 7 8 10 11 15 15 15 15 15 15 14 Most Carried 15 | 5 9 10 15 15 15 15 15 15 15 15 Average Carried 12 | 3 7 9 10 15 14 14 14 14 15 14 Final Capacity 15 | 8 10 10 15 15 15 15 15 15 15 5 Final Carried 15 | 5 9 10 15 15 15 15 15 15 15 5 Class Distribution -------------------- 52% | Scavenger-Skirmisher 16% | Skirmisher 15% | Mutant 7% | Scavenger-Mutant 5% | Scavenger-Gunner Dominant Class ---------------- Mutant | -10/Materials Scavenger-Mutant | -10/Mines Scavenger-Gunner | -9/Materials Skirmisher | -9/Mines Skirmisher | -9/Exiles Mutant | -8/Mines Scavenger-Skirmisher | -8/Materials Scavenger-Skirmisher | -8/Storage Scavenger-Skirmisher | -8/Recycling Scavenger-Skirmisher | -6/Factory Resources | -11 -10 -10 -9 -9 -9 -8 -8 -8 -8 -6 ----------- Run | Scr Mat Min Mat Min Exi Min Mat Sto Rec Fac Matter Collected 2235 | 302 138 48 363 105 . 88 594 400 72 125 Remotely . | . . . . . . . . . . . Salvage Created 3380 | 207 405 77 981 107 . 97 562 681 78 185 Parts 249 | 16 34 14 58 10 . 4 37 54 5 17 Haulers Intercepted 11 | . 1 . 4 . . . 1 5 . . Recyclers Shooed 3 | 1 . . 1 . . . 1 . . . Parts Field Recycled . | . . . . . . . . . . . Retrieved Matter . | . . . . . . . . . . . Parts Self-Destructed . | . . . . . . . . . . . Prevented . | . . . . . . . . . . . Kills | -11 -10 -10 -9 -9 -9 -8 -8 -8 -8 -6 ------- Run | Scr Mat Min Mat Min Exi Min Mat Sto Rec Fac Combat Hostiles Destroyed 60 | . 12 3 13 8 . 3 5 8 1 7 Melee 1 | . . . . . . . . . . 1 Guns 41 | . 12 3 12 4 . 2 4 2 . 2 Cannons 11 | . . . . . . . 1 5 1 4 AOE 5 | . . . . 4 . 1 . . . . Classes Destroyed 17 | 3 5 1 2 1 . . 1 1 1 2 Worker 9 | 2 . . . . . . 4 3 . . Builder 4 | . . 2 . . . . . 2 . . Tunneler 5 | 5 . . . . . . . . . . Hauler 11 | . 1 . 4 . . . 1 5 . . Recycler 5 | 1 . . 1 1 . . 1 . 1 . Mechanic 1 | . . . . . . . . 1 . . Operator 1 | . 1 . . . . . . . . . Drone 1 | . . . . . . . . . 1 . Watcher 6 | . 1 . 2 . . . 2 1 . . Swarmer 21 | . 6 3 . 6 . . . 3 . 3 Grunt 17 | . 6 . 7 . . 3 . 1 . . Duelist 3 | . . . 2 . . . . . . 1 Sentry 11 | . . . 4 . . . 3 4 . . Hunter 2 | . . . . . . . 2 . . . Programmer 2 | . . . . . . . . . . 2 Heavy 1 | . . . . . . . . . . 1 Assembled 2 | . . . . 2 . . . . . . Best Kill Streak 6 | 2 3 3 4 4 . 3 3 6 1 3 Combat Bots Only 4 | . 3 3 3 4 . 3 2 3 1 3 Max Kills in Single Turn 2 | 1 1 2 1 2 . 2 2 2 1 2 Gunslinging 1 | . . 1 . . . . . . . . Exploded 2 | . . . . 2 . 1 . . . . Melee 1 | . . . . . . . . . . 1 Uniques/NPCs Destroyed . | . . . . . . . . . . . Combat | -11 -10 -10 -9 -9 -9 -8 -8 -8 -8 -6 -------- Run | Scr Mat Min Mat Min Exi Min Mat Sto Rec Fac Damage Taken 4496 | . 319 80 869 278 . 84 288 215 . 2363 Core 1194 | . 120 . 128 31 . . 33 24 . 858 Absorbed by Shields 60 | . . . . . . . . 44 . 16 Regen/Repaired (Parts) 209 | . . . . . . . 90 119 . . Core Remaining (%) 75 | 100 . 52 . . . 60 . . 89 . Volleys Fired 248 | 32 49 8 60 13 . 4 30 30 4 18 Largest 4 | 2 2 2 3 3 . 3 3 3 3 4 Hottest 217 | 70 70 70 132 109 . 109 123 144 142 217 Shots Fired 644 | 64 98 16 160 37 . 12 87 89 12 69 Gun 526 | 64 98 16 160 31 . 8 82 28 4 35 Cannon 108 | . . . . . . . 5 61 8 34 Launcher 10 | . . . . 6 . 4 . . . . Special . | . . . . . . . . . . . Kinetic 367 | 32 78 8 68 19 . 4 58 58 8 34 Thermal 231 | 32 20 8 56 12 . 4 29 31 4 35 Explosive 10 | . . . . 6 . 4 . . . . Electromagnetic 36 | . . . 36 . . . . . . . Robot Hit Streak 10 | 4 9 10 9 9 . 4 9 9 2 7 Robot Miss Streak 18 | 5 3 2 2 3 . 2 4 5 16 18 Penetration Max . | . . . . . . . . . . . Secondary Targets 4 | . 1 1 1 1 . . . . . . Max Gunslinging Chain 1 | . 1 1 1 1 . . . . . . Shots Hit Robots 382 | 29 66 10 113 10 . 5 50 42 3 54 Core Hits 202 | 12 29 7 35 11 . 9 22 42 3 32 Critical Kills 2 | . . . . . . . . 2 . . Critical Parts Destroyed 1 | . . . . . . . 1 . . . Critical Strikes 9 | 3 . 1 1 . . . 1 2 . 1 Burn 6 | 3 . 1 1 . . . . . . 1 Meltdown 1 | . . . . . . . . 1 . . Destroy 2 | . . . . . . . 1 1 . . Melee Attacks . | . . . . . . . . . . . Impact . | . . . . . . . . . . . Slashing . | . . . . . . . . . . . Piercing . | . . . . . . . . . . . Sneak Attacks . | . . . . . . . . . . . Combat Hostiles . | . . . . . . . . . . . Follow-up Attacks . | . . . . . . . . . . . Damage Inflicted 6246 | 297 605 109 1411 427 . 402 807 972 78 1138 Guns 3974 | 297 602 105 1369 158 . 45 628 235 12 523 Cannons 1574 | . . . . . . . 179 728 56 611 Explosions 665 | . . . 39 269 . 357 . . . . Melee . | . . . . . . . . . . . Ramming 33 | . 3 4 3 . . . . 9 10 4 Kinetic 2607 | 135 439 28 386 54 . 11 425 588 18 523 Thermal 2590 | 162 163 77 632 104 . 34 382 375 50 611 Explosive 626 | . . . . 269 . 357 . . . . Electromagnetic 390 | . . . 390 . . . . . . . Impact . | . . . . . . . . . . . Slashing . | . . . . . . . . . . . Piercing . | . . . . . . . . . . . Highest Corruption 3 | . . . . . . . . 2 2 3 Average Corruption 2 | . . . . . . . . 2 2 2 Corruption Purged . | . . . . . . . . . . . Corruption Blocked . | . . . . . . . . . . . Effects 38 | . . . . . . . . 17 6 15 Message Errors 7 | . . . . . . . . 2 4 1 Matter Fused 11 | . . . . . . . . 4 1 6 Heat Flow Errors 3 | . . . . . . . . 2 . 1 Energy Discharges 7 | . . . . . . . . 4 . 3 Data Loss (minor) 4 | . . . . . . . . 1 . 3 Data Loss (major) 4 | . . . . . . . . 2 1 1 Misfires 1 | . . . . . . . . 1 . . Weapon Failures 1 | . . . . . . . . 1 . . Overload Shots . | . . . . . . . . . . . Overflow Damage 77 | . . . 9 39 . 3 . . . 26 Projectiles 26 | . . . . . . . . . . 26 Explosions 51 | . . . 9 39 . 3 . . . . Melee . | . . . . . . . . . . . Knockbacks 14 | . . . . . . . . 8 . 6 Impact . | . . . . . . . . . . . Kinetic 13 | . . . . . . . . 8 . 5 Secondary 1 | . . . . . . . . . . 1 Self-Inflicted Damage 19 | . . . 17 . . 2 . . . . Shots 2 | . . . 1 . . 1 . . . . Rammed . | . . . . . . . . . . . Targets Rammed 8 | . 1 1 1 . . . . 1 3 1 Kicked 8 | . 1 1 1 . . . . 1 3 1 Crushed . | . . . . . . . . . . . Highest Temperature 781 | 160 90 100 394 126 . 182 169 235 132 781 Average Temperature 97 | 46 30 48 124 63 . 102 47 62 53 260 Received Heat Transfer 1080 | . 96 . 312 . . 45 18 42 . 567 Effects 33 | . . . 9 . . . . . . 24 Energy Bleed 5 | . . . 2 . . . . . . 3 Interference 10 | . . . 5 . . . . . . 5 Matter Decay 1 | . . . . . . . . . . 1 Short Circuit 3 | . . . 1 . . . . . . 2 Damage (minor) 4 | . . . 1 . . . . . . 3 Damage (major) 10 | . . . . . . . . . . 10 Siege Activations . | . . . . . . . . . . . Robots Corrupted 1 | . . . 1 . . . . . . . Combat Hostiles 1 | . . . 1 . . . . . . . Parts Fried 1 | . . . 1 . . . . . . . Impact Corruptions . | . . . . . . . . . . . Robots Melted 1 | . . . . . . . . 1 . . Combat Hostiles 1 | . . . . . . . . 1 . . Parts Melted 11 | 1 . . 6 . . . . 3 . 1 Heat Transferred 5584 | 703 481 296 1752 222 . 74 598 555 74 829 Parts Sabotaged . | . . . . . . . . . . . Parts Stolen . | . . . . . . . . . . . Parts Stripped . | . . . . . . . . . . . Power Chain Reactions 1 | . . . 1 . . . . . . . Missiles Intercepted . | . . . . . . . . . . . Alert | -11 -10 -10 -9 -9 -9 -8 -8 -8 -8 -6 ------- Run | Scr Mat Min Mat Min Exi Min Mat Sto Rec Fac Peak Influence 976 | 40 203 137 224 337 . 97 233 218 135 976 Initial 906 | . 26 42 . 54 . . 37 22 39 906 Average 182 | 18 75 82 101 291 . 94 97 81 83 607 Maximum Alert Level 3 | . 1 . 1 1 . . 1 1 . 3 Low Security (%) 75 | 100 92 100 97 7 . 100 89 99 100 6 Level 1 10 | . 7 . 2 92 . . 10 . . 11 Level 2 8 | . . . . . . . . . . 50 Level 3 5 | . . . . . . . . . . 31 Level 4 . | . . . . . . . . . . . Level 5 . | . . . . . . . . . . . High Security . | . . . . . . . . . . . Max Security . | . . . . . . . . . . . Squads Dispatched 8 | . 3 . 1 . . . 1 . . 3 Investigation 2 | . . . 1 . . . . . . 1 Extermination 1 | . . . . . . . . . . 1 Reinforcement 4 | . 3 . . . . . . . . 1 Assault . | . . . . . . . . . . . Garrison 1 | . . . . . . . 1 . . . Intercept . | . . . . . . . . . . . Searches Triggered 3 | . . . . . . . . . . 3 Construction Impeded . | . . . . . . . . . . . Haulers Reinforced . | . . . . . . . . . . . Active Scanning Responses . | . . . . . . . . . . . Cargo Convoy Interrupts . | . . . . . . . . . . . Stealth | -11 -10 -10 -9 -9 -9 -8 -8 -8 -8 -6 --------- Run | Scr Mat Min Mat Min Exi Min Mat Sto Rec Fac Distress Signals 10 | . 4 . 2 . . . 2 2 . . Communications Jammed . | . . . . . . . . . . . Distress Signals . | . . . . . . . . . . . Times Spotted 124 | . 23 3 17 18 . 3 13 11 13 23 Peak Tracking Total 10 | . 3 3 5 10 . 3 5 3 5 10 Tactical Retreats 7 | . 1 . . . . . 3 1 . 2 Traps | -11 -10 -10 -9 -9 -9 -8 -8 -8 -8 -6 ------- Run | Scr Mat Min Mat Min Exi Min Mat Sto Rec Fac Traps Triggered 4 | . 1 . . . . . . 2 . 1 Indirectly . | . . . . . . . . . . . Trap Hack Attempts . | . . . . . . . . . . . Triggered . | . . . . . . . . . . . Disarmed . | . . . . . . . . . . . Reprogrammed . | . . . . . . . . . . . Reused . | . . . . . . . . . . . Traps Extracted . | . . . . . . . . . . . Installed . | . . . . . . . . . . . Triggered . | . . . . . . . . . . . Machines | -11 -10 -10 -9 -9 -9 -8 -8 -8 -8 -6 ---------- Run | Scr Mat Min Mat Min Exi Min Mat Sto Rec Fac Machines Disabled 13 | . . . . 5 . 1 3 4 . . Max in Single Turn 3 | . . . . 3 . 1 1 2 . . Machines Sabotaged . | . . . . . . . . . . . Garrisons Compromised . | . . . . . . . . . . . Overloaded Fab Kills . | . . . . . . . . . . . Hacking | -11 -10 -10 -9 -9 -9 -8 -8 -8 -8 -6 --------- Run | Scr Mat Min Mat Min Exi Min Mat Sto Rec Fac Machines Accessed 24 | . 1 . 2 . 4 . 4 6 5 2 Terminals 18 | . 1 . 2 . . . 3 5 5 2 Fabricators . | . . . . . . . . . . . Repair Stations 2 | . . . . . . . 1 1 . . Recycling Units . | . . . . . . . . . . . Scanalyzers . | . . . . . . . . . . . Garrison Access . | . . . . . . . . . . . Total Hacks 103 | . 2 . 9 . 49 . 9 18 10 6 Successful 79 | . 2 . 3 . 49 . 4 15 4 2 Failed 24 | . . . 6 . . . 5 3 6 4 Catastrophic 4 | . . . 1 . . . 1 . 2 . Database Lockouts . | . . . . . . . . . . . Manual 23 | . 1 . 3 . 2 . 3 5 6 3 Terminals 46 | . 2 . 9 . . . 7 12 10 6 Fabricators . | . . . . . . . . . . . Repair Stations 8 | . . . . . . . 2 6 . . Recycling Units . | . . . . . . . . . . . Scanalyzers . | . . . . . . . . . . . Garrison Access . | . . . . . . . . . . . Terminal Hacks 71 | . 2 . 3 . 49 . 2 9 4 2 Record 52 | . . . . . 49 . . 2 . 1 Robot Analysis 1 | . 1 . . . . . . . . . Prototype ID Bank 1 | . . . . . . . 1 . . . Level Access Points 3 | . . . 1 . . . . 1 1 . Branch Access Points 2 | . . . . . . . . 1 1 . Terminal Index 1 | . . . . . . . . 1 . . Alert Level 2 | . . . . . . . . 1 . 1 Unreport Threat 2 | . . . 1 . . . . . 1 . Locate Traps 2 | . . . . . . . . 2 . . Transport Status 2 | . 1 . . . . . 1 . . . Hauler Manifests 2 | . . . 1 . . . . 1 . . Registered Components 1 | . . . . . . . . . 1 . Fabricator Hacks . | . . . . . . . . . . . Repair Station Hacks 8 | . . . . . . . 2 6 . . Scan Component 4 | . . . . . . . 1 3 . . Repair 4 | . . . . . . . 1 3 . . Recycling Unit Hacks . | . . . . . . . . . . . Scanalyzer . | . . . . . . . . . . . Garrison Access Hacks . | . . . . . . . . . . . Unauthorized Hacks . | . . . . . . . . . . . Terminals . | . . . . . . . . . . . Fabricators . | . . . . . . . . . . . Repair Stations . | . . . . . . . . . . . Recycling Units . | . . . . . . . . . . . Scanalyzers . | . . . . . . . . . . . Garrison Access . | . . . . . . . . . . . Data Cores Recovered . | . . . . . . . . . . . Used . | . . . . . . . . . . . Hacking Detections 20 | . 1 . 2 . . . 4 6 5 2 Full Trace Events 4 | . . . 1 . . . . 1 1 1 Feedback Events . | . . . . . . . . . . . Feedback Blocked . | . . . . . . . . . . . Robot Schematics Acquired . | . . . . . . . . . . . Robots Built . | . . . . . . . . . . . Authchips . | . . . . . . . . . . . Time . | . . . . . . . . . . . Total Robot Build Rating . | . . . . . . . . . . . Part Schematics Acquired . | . . . . . . . . . . . Parts Built . | . . . . . . . . . . . Authchips . | . . . . . . . . . . . Time . | . . . . . . . . . . . Total Part Build Rating . | . . . . . . . . . . . Parts Repaired 4 | . . . . . . . 1 3 . . Time 146 | . . . . . . . 38 108 . . Parts Recycled . | . . . . . . . . . . . Recycled Matter . | . . . . . . . . . . . Retrieved Matter . | . . . . . . . . . . . Retrieved Components . | . . . . . . . . . . . Parts Scanalyzed . | . . . . . . . . . . . Part Schematics Acquired . | . . . . . . . . . . . Parts Damaged . | . . . . . . . . . . . Bothacking | -11 -10 -10 -9 -9 -9 -8 -8 -8 -8 -6 ------------ Run | Scr Mat Min Mat Min Exi Min Mat Sto Rec Fac Used RIF Installer . | . . . . . . . . . . . Robots Hacked . | . . . . . . . . . . . Non-combat . | . . . . . . . . . . . Combat . | . . . . . . . . . . . Robot Hacks Applied . | . . . . . . . . . . . Relay Couplers Released . | . . . . . . . . . . . Fabnet Peak Effective % . | . . . . . . . . . . . Robots Rewired . | . . . . . . . . . . . Allies Hacked . | . . . . . . . . . . . Hacks Repelled . | . . . . . . . . . . . Allies | -11 -10 -10 -9 -9 -9 -8 -8 -8 -8 -6 -------- Run | Scr Mat Min Mat Min Exi Min Mat Sto Rec Fac Total Allies . | . . . . . . . . . . . Largest Group . | . . . . . . . . . . . Highest-Rated Group . | . . . . . . . . . . . Highest-Rated Ally . | . . . . . . . . . . . Total Orders . | . . . . . . . . . . . Ally Attacks . | . . . . . . . . . . . Total Damage . | . . . . . . . . . . . Kills . | . . . . . . . . . . . Allies Corrupted . | . . . . . . . . . . . Allies Melted . | . . . . . . . . . . . Intel | -11 -10 -10 -9 -9 -9 -8 -8 -8 -8 -6 ------- Run | Scr Mat Min Mat Min Exi Min Mat Sto Rec Fac Robot Analysis Total 1 | . 1 . . . . . . . . . Derelict Logs Recovered 4 | . . 2 . 2 . . . . . . Drone Launches . | . . . . . . . . . . . Drone Recoveries . | . . . . . . . . . . . Exploration | -11 -10 -10 -9 -9 -9 -8 -8 -8 -8 -6 ------------- Run | Scr Mat Min Mat Min Exi Min Mat Sto Rec Fac Turns Passed 8554 | 308 945 557 775 425 831 260 1514 1294 362 1283 Spaces Moved 4524 | 172 462 423 334 174 624 140 733 548 240 674 Core 23 | 7 . . . . . . . . . 16 Treads . | . . . . . . . . . . . Legs 3637 | 165 462 423 305 103 . . 733 548 240 658 Wheels 864 | . . . 29 71 624 140 . . . . Hover . | . . . . . . . . . . . Flight . | . . . . . . . . . . . Fastest Speed 50 | 50 120 120 120 130 115 130 120 120 120 50 Average Speed 124 | 117 120 120 132 172 129 130 120 121 120 119 Slowest Speed 260 | 120 120 120 260 260 130 130 120 190 120 195 Overloaded Moves . | . . . . . . . . . . . Propulsion Burnouts . | . . . . . . . . . . . Robots Hopped . | . . . . . . . . . . . Cave-ins Triggered . | . . . . . . . . . . . Exploration Rate (%) 49 | 9 54 99 34 55 90 26 35 62 62 13 Regions Visited 10 Branch Regions 6 Pre-discovered Areas 1 | . . . . . 1 . . . . . Known Exits Taken 5 | . . 1 . . . 1 1 1 1 . Unknown Exits Taken 5 | 1 1 . 1 1 1 . . . . . Scrap Searched 2 | . . 1 . 1 . . . . . . Spaces Dug 1 | . . . . . . . . 1 . . Terrain Destroyed 96 | . . . 4 18 . 36 12 25 1 . Melee . | . . . . . . . . . . . Projectile 15 | . . . . . . . 1 13 1 . AOE 81 | . . . 4 18 . 36 11 12 . . Terrain Rammed . | . . . . . . . . . . . Walls Destroyed . | . . . . . . . . . . . Machines Disabled . | . . . . . . . . . . . Actions | -11 -10 -10 -9 -9 -9 -8 -8 -8 -8 -6 --------- Run | Scr Mat Min Mat Min Exi Min Mat Sto Rec Fac Total 6931 | 219 772 457 550 268 644 209 1302 1103 304 1103 Wait 1914 | . 241 22 86 77 . 61 495 501 58 373 Move 4514 | 171 461 422 333 173 623 139 732 547 239 674 Hop . | . . . . . . . . . . . Pick Up 43 | 9 4 1 11 . 1 1 7 4 . 5 Fast Attach 42 | 3 2 1 16 . 7 1 6 4 . 2 Attach 22 | 4 1 . 3 . . . 4 1 . 9 Detach 11 | . 2 1 3 . . . 2 1 . 2 Swap 61 | . 5 1 16 5 4 1 9 8 . 12 Drop 68 | . 6 . 21 . 9 2 17 6 . 7 Fire 248 | 32 49 8 60 13 . 4 30 30 4 18 Melee . | . . . . . . . . . . . Ram . | . . . . . . . . . . . Kick 8 | . 1 1 1 . . . . 1 3 1 Crush . | . . . . . . . . . . . Escape Stasis . | . . . . . . . . . . . Rewire . | . . . . . . . . . . . Trap . | . . . . . . . . . . . Miscellaneous . | . . . . . . . . . . . Route ------- -11/Scrapyard -10/Materials (discovered 2 exits: *Mat / [*Min]) -10/Mines (discovered 2 exits: *Mat x2) -9/Materials (discovered 4 exits: Mat x3 / [*Min]) -9/Mines -9/Exiles -8/Mines -8/Materials -8/Storage (discovered 2 exits: *Fac / *Rec) -8/Recycling -6/Factory History --------- Turn | Location | Event 14 | -11/Scrapyard | Discovered new exit (range 16) 309 | -11/Scrapyard | Entered Materials 310 | -10/Materials | Build established: Mutant 760 | -10/Materials | Discovered new exit (range 14) 805 | -10/Materials | Discovered new exit (range 3) 1254 | -10/Materials | Entered Mines 1317 | -10/Mines | Received a Rocket Launcher from a helpful Derelict 1486 | -10/Mines | Build established: Scavenger-Mutant 1516 | -10/Mines | Identified exit to Materials 1676 | -10/Mines | Discovered exit to Materials (range 13) 1811 | -10/Mines | Entered Materials 1811 | -9/Materials | Evolved 2 slots: Propulsion x1, Weapon x1 2058 | -9/Materials | Lost 4 parts (1p1n1u1w) 2208 | -9/Materials | Identified exit to Materials 2319 | -9/Materials | Discovered new exit (range 13) 2586 | -9/Materials | Entered Mines 2597 | -9/Mines | Met a Derelict bent on vengeance 2724 | -9/Mines | Learned location of 1 exit from Lower Caves 2726 | -9/Mines | Learned Materials security intel 2733 | -9/Mines | Assembled infested the area 2949 | -9/Mines | Build established: Skirmisher 2999 | -9/Mines | Deemed a non-threat by the Exiles lab entrance 2999 | -9/Mines | Discovered new exit (range 5) 3011 | -9/Mines | Entered Exiles 3048 | -9/Exiles | Met 8R-AWN 3071 | -9/Exiles | Met EX-HEX 3127 | -9/Exiles | Met EX-DEC 3166 | -9/Exiles | Visited The Gauntlet 3364 | -9/Exiles | Learned location of Zion (-6) 3403 | -9/Exiles | Discovered new exit (range 14) 3554 | -9/Exiles | Met EX-BIN 3580 | -9/Exiles | Aligned with FarCom system 3582 | -9/Exiles | Given EX-Vault access code 3654 | -9/Exiles | Opened EX-Vault 3662 | -9/Exiles | Found Prototype Energy Cannon 3662 | -9/Exiles | Identified YOLO Cannon 3678 | -9/Exiles | Found Prototype Device 3678 | -9/Exiles | Identified Trap Reconfigurator 3718 | -9/Exiles | Warned to stay clear of 0b10 Research branches 3842 | -9/Exiles | Left Exiles lab with YOLO Cannon 3842 | -9/Exiles | Entered Mines 3967 | -8/Mines | Discovered exit to Materials (range 9) 4102 | -8/Mines | Entered Materials 4102 | -8/Materials | Evolved 2 slots: Propulsion x1, Utility x1 4103 | -8/Materials | Identified exit to Storage 4152 | -8/Materials | Repaired Carbon-fiber Leg 4397 | -8/Materials | Build established: Scavenger-Skirmisher 4913 | -8/Materials | Garrison activated, responded to threat 5616 | -8/Materials | Entered Storage 6150 | -8/Storage | Repaired Carbon-fiber Leg 6196 | -8/Storage | Repaired Carbon-fiber Leg 6246 | -8/Storage | Repaired Rocket Launcher 6542 | -8/Storage | Identified exit to Factory 6755 | -8/Storage | Identified exit to Recycling 6910 | -8/Storage | Entered Recycling 6965 | -8/Recycling | Spotter reported a threat 6965 | -8/Recycling | Spotter reported a threat 6981 | -8/Recycling | Spotter reported a threat 6981 | -8/Recycling | Spotter reported a threat 7034 | -8/Recycling | Spotter reported a threat 7036 | -8/Recycling | Spotter reported a threat 7051 | -8/Recycling | Spotter reported a threat 7072 | -8/Recycling | Spotter reported a threat 7089 | -8/Recycling | Spotter reported a threat 7123 | -8/Recycling | Spotter reported a threat 7126 | -8/Recycling | Spotter reported a threat 7126 | -8/Recycling | Spotter reported a threat 7128 | -8/Recycling | Spotter reported a threat 7142 | -8/Recycling | Spotter reported a threat 7195 | -8/Recycling | Spotter reported a threat 7203 | -8/Recycling | Identified exit to Factory 7259 | -8/Recycling | Spotter reported a threat 7272 | -8/Recycling | Entered Factory 7272 | -6/Factory | Evolved 4 slots: Propulsion x1, Utility x2, Weapon x1 7622 | -6/Factory | Search patrols dispatched 7972 | -6/Factory | Search patrols dispatched 8322 | -6/Factory | Search patrols dispatched 8550 | -6/Factory | Core integrity fell below 50% 8553 | -6/Factory | Core integrity fell below 20% 8555 | -6/Factory | Destroyed by H-66 Slayer with Heavy Assault Rifle Last Messages --------------- 08545_ Critical hit (Burn: +37). 08546_ Overheating: System interference. 08546_ Target Analyzer temporarily disabled. 08547_ Carbon-fiber Leg destroyed. 08547_ Dropped Lrg. Storage Unit. 08547_ R-10 Processor collects Targeting Computer. 08547_ Penetrated by Slug. 08547_ Extracted 93 energy. 08548_ Penetrated by Slug. 08549_ Overheating: Target Analyzer damaged (-3). 08551_ R-10 Processor collects Cooling System. 08551_ Penetrated by Slug. 08552_ Critical hit (Burn: +37). 08552_ U-05 Engineer builds a Door. 08554_ Overheating: Target Analyzer damaged (-3). 08554_ Overheating: Imp. Signal Interpreter damaged (-12). 08555_ Penetrated by Slug. 08555_ Slug penetrates Wall. 08555_ Penetrated by Slug. [Achievement: This Is Interesting...] Map ----- +----------------------------------------------------+ | ########## ?????????????????????????????????????? | | #########???????????????????????????????????????? | | ##??????????????????????????????????????????????? | | ########## ?????????????????????????????????????? | | ########## ?????????????????????????????????????? | | + ?????????????????????????????????????? | | ##+####### ?????????????????????????????????????? | | # ####?????????????????????????????????????? | | # ##???????????????????????????????????????? | | # ##???????????????????????????????????????? | | # """ ##???????????????? ?????????????????????? | | # """ ##???????????????? ???????????????????? | | # """ ##??????????????## ##????????????????? | | #########?????????????# #???????????????? | | #########?????????????# ####????????????? | | ##????????????????????# ????????????? | | ##????????????????????? ???????????? | | ##????????????????????? ???????????? | | ##????????????????????? ?????????????? | | ####??????????????????? ??????????????? | | +??????????????????? #???????????????? | | #??????????????????? #???????????????? | | #???????????????????# #????????????????? | | +## +???????????????????# #????????????????? | | # #???????????????????#% #????????????????? | | ""# #####################@% #????????????????? | | Y"# h #????????????????? | | ""# % h #????????????????? | | # #????????????????? | | " + % s #????????????????? | | " # gsgsg #????????????????? | | " # %g g #????????????????? | | + = ut #????????????????? | | ######+######;!![R;;### #????????????????? | | ## # !!=%% # #????????????????? | | ## """" # """ !!! # #????????????????? | | #### """" # """"[ **!# #????????????????? | | ???# """" # """ **!# #????????????????? | | ???# """" # """"^ ** # C #????????????????? | | ???# # """" # #????????????????? | | ???# """" # """" ^ # #????????????????? | | ???#! """" # """" #? ??? #????????????????? | | ???# """" # #????????????????????????? | | ???# """" # ! #????????????????????????? | | ???# # ^ #????????????????????????? | | ???# """" # #????????????????????????? | | ???# """" ##############????????????????????????? | | ???# """" #?????????????????????????????????????? | | ???# """" #?????????????????????????????????????? | | ???? #?????????????????????????????????????? | +----------------------------------------------------+ Best States ------------- Heat Dissipation 37 Energy Generation 14 Energy Capacity 630 Matter Stores 300 Matter Capacity 300 Sight Range 18 Robot Scan Range 15 Terrain Scan Density 10 ECM Strength 1 Armor Coverage 150 Resistance: KI 20 Evasion (%) 55 Targeting Accuracy 5 Target Analysis 5 Offensive Hacking 10 Item Schematics ----------------- None Robot Schematics ------------------ None Fabricated ------------ Nothing Alien Tech Used ----------------- None Achievements -------------- Shopping List This Is Interesting... \\IAMDERELICT Challenges ------------ None Game ------ Seed InsulationAluminumAxe Manual? 0 Play Time 02:21:06 Cumulative 25.2 hours Start 2023.02.16 @ 23:54:25 End 2023.02.17 @ 15:28:46 Sessions 5 Manual Loads 0 Difficulty Rogue Special Mode None Game No. 12 Rogue 12 Adventurer 0 Explorer 0 Win Type - Total 0 Types 0/0/0/0/0/0/0/0/0 Lore% 31 Gallery% 29 Achievement% 26 Wizard Run 0 Options --------- ASCII 0 Keyboard 0 Movement Mouse Keybinds 0 Fullscreen 0 Font 20/Terminus Map View 76x50 Tactical HUD 1 Map Filters NONE Filters NONE Steam 1 RUN: f66b0c2b-c69d-4d23-adae-1344e441763e